{"text_format":"3","workbook":"xlsx","n_sheets":2,"sheets":["Awal","Faktur Layanan"],"not_rendered":{"images":2,"defined_names":1},"read":"whole","date_system":"1900"}

{"sheet":"Awal","index":0,"n_rows":8,"n_cols":2,"rows_kept":8}
[null,"TENTANG TEMPLAT INI"]
[null,"Gunakan templat ini untuk membuat Faktur Layanan sederhana dalam desain biru."]
[null,"Isi detail Nomor faktur, Tanggal, ID Pelanggan, Nama dan Slogan Perusahaan, serta Tagihan kepada."]
[null,"Masukkan informasi ke dalam tabel."]
[null,"Total akan dihitung secara otomatis untuk Anda."]
[null,"Catatan: "]
[null,"Instruksi tambahan telah disediakan dalam kolom A di lembar kerja FAKTUR LAYANAN. Teks ini sengaja disembunyikan. Untuk menghapus teks, pilih kolom A, lalu pilih HAPUS. "]
[null,"Untuk mempelajari selengkapnya tentang tabel, tekan SHIFT, lalu F10 di dalam tabel, pilih opsi TABEL, lalu pilih TEKS ALTERNATIF."]

{"sheet":"Faktur Layanan","index":1,"n_rows":42,"n_cols":5,"rows_kept":42,"merged":[[1,1,1,2],[1,3,1,4],[2,1,2,2],[3,1,3,2],[39,1,39,2],[39,3,39,4],[40,1,40,4],[41,1,41,4],[43,2,43,3]]}
[]
[null,"Tempat penampung logo berada dalam sel ini.",null,"Faktur"]
[null,"Nama Perusahaan Anda",null,"Tanggal:",{"$f":"TODAY()","v":"2022-05-25"}]
[null," Slogan Perusahaan Anda Di Sini",null,"No. Faktur:","No."]
[{"$nulls":3},"ID Pelanggan:","ID"]
[null,"Kepada:","Nama"]
[null,null,"Nama Perusahaan"]
[null,null,"Alamat"]
[null,null,"Kota, Kode Pos"]
[null,null,"Telepon"]
[null,"Staf Penjualan","Pekerjaan","Ketentuan Pembayaran","Tanggal Jatuh Tempo"]
[{"$nulls":3},"Jatuh tempo setelah penerimaan"]
[]
[null,"Jml","Deskripsi","Harga Satuan","Total Baris"]
[{"$nulls":4},{"$f":"IF(SUM(B15)>0,SUM(B15*D15),\"\")","v":""}]
[{"$nulls":4},""]
[{"$nulls":4},""]
[{"$nulls":4},""]
[{"$nulls":4},""]
[{"$nulls":4},""]
[{"$nulls":4},""]
[{"$nulls":4},""]
[{"$nulls":4},""]
[{"$nulls":4},""]
[{"$nulls":4},""]
[{"$nulls":4},""]
[{"$nulls":4},""]
[{"$nulls":4},""]
[{"$nulls":4},""]
[{"$nulls":4},""]
[{"$nulls":4},""]
[{"$nulls":4},""]
[{"$nulls":4},""]
[{"$nulls":4},""]
[{"$nulls":4},""]
[{"$nulls":3},"Subtotal",{"$f":"IF(SUM(E15:E35)>0,SUM(E15:E35),\"\")","v":""}]
[{"$nulls":3},"Pajak Penjualan"]
[{"$nulls":3},"Total",{"$f":"IF(SUM(E36)>0,SUM((E36*E37)+E36),\"\")","v":""}]
[]
[null,"Cek terutang diberikan kepada",null,{"$f":"B3","v":"Nama Perusahaan Anda"}]
[null,"Terima kasih atas kerja sama Anda!"]
[null,"Alamat,  Kota, Kode Pos, Telepon, Faks, Email"]